fUSD/lending_fUSD_20240425
["ID","MTS","AMOUNT","RATE_DAILY","PERIOD"]
[323502517,1714056638542,-500.0,0.00010999,2]
[323502519,1714056638551,-500.0,0.00010999,2]
[323502521,1714056638560,-500.0,0.00010999,2]
[323502523,1714056638569,-500.0,0.00010999,2]
[323502525,1714056638579,-500.0,0.00010999,2]
[323502528,1714056638588,-595.25,0.00010999,2]
[323502530,1714056638598,-500.0,0.00010999,2]
[323502532,1714056638607,-155.81,0.00010999,2]
[323502534,1714056638616,-500.0,0.00010999,2]
[323502536,1714056638625,-500.0,0.00010999,2]
[323502538,1714056638634,-500.0,0.00010999,2]
[323502540,1714056638643,-500.0,0.00010999,2]
[323502542,1714056638651,-500.0,0.00010999,2]
[323502544,1714056638661,-462.72856898,0.00010999,2]
[323502546,1714056638670,-500.0,0.00010999,2]
[323502548,1714056638679,-500.0,0.00010999,2]
[323502550,1714056638690,-500.0,0.00010999,2]
[323502552,1714056638701,-500.0,0.00010999,2]
[323502554,1714056638710,-762.27,0.00010999,2]
[323502555,1714056638719,-500.0,0.00010999,2]
[323502557,1714056638728,-500.0,0.00010999,2]
[323502559,1714056638737,-500.0,0.00010999,2]
[323502562,1714056638747,-500.0,0.00010999,2]
[323502564,1714056638756,-500.0,0.00010999,2]
[323502566,1714056638765,-500.0,0.00010999,2]
[323502568,1714056638774,-500.0,0.00010999,2]
[323502570,1714056638783,-500.0,0.00010999,2]
[323502572,1714056638791,-500.0,0.00010999,2]
[323502574,1714056638800,-30.93194931,0.00010999,2]
[323502577,1714056638820,-332.59379287,0.00010999,2]
[323502579,1714056638829,-718.64,0.00010999,2]
[323502581,1714056638838,-500.0,0.00010999,2]
[323502583,1714056638847,-721.65,0.00010999,2]
[323502585,1714056638856,-500.0,0.00010999,2]
[323502587,1714056638864,-500.0,0.00010999,2]
[323502589,1714056638873,-500.0,0.00010999,2]
[323502591,1714056638882,-500.0,0.00010999,2]
[323502593,1714056638891,-500.0,0.00010999,2]
[323502594,1714056638900,-500.0,0.00010999,2]
[323502597,1714056638910,-500.0,0.00010999,2]
[323502599,1714056638924,-525.91609066,0.00010999,2]
[323502601,1714056638933,-633.92,0.00010999,2]
[323502603,1714056638942,-500.0,0.00010999,2]
[323502605,1714056638951,-500.0,0.00010999,2]
[323502607,1714056638960,-2179.89,0.00010999,2]
[323502609,1714056638969,-514.58,0.00010999,2]
[323502611,1714056638978,-505.84,0.00010999,2]
[323502613,1714056638989,-1276.34,0.00010999,2]
[323502615,1714056638999,-1771.36,0.00010999,2]
[323502617,1714056639011,-500.0,0.00010999,2]
[323502619,1714056639020,-500.0,0.00010999,2]
[323502621,1714056639029,-544.56,0.00010999,2]
[323502623,1714056639038,-500.0,0.00010999,2]
[323502625,1714056639049,-500.0,0.00010999,2]
[323502628,1714056639059,-500.0,0.00010999,2]
[323502630,1714056639071,-500.0,0.00010999,2]
[323502631,1714056639082,-500.0,0.00010999,2]
[323502634,1714056639091,-500.0,0.00010999,2]
[323502636,1714056639104,-500.0,0.00010999,2]
[323502638,1714056639116,-500.0,0.00010999,2]
[323502640,1714056639125,-500.0,0.00010999,2]
[323502642,1714056639135,-500.0,0.00010999,2]
[323502644,1714056639144,-500.0,0.00010999,2]
[323502646,1714056639154,-1708.09,0.00010999,2]
[323502648,1714056639164,-768.18,0.00010999,2]
[323502650,1714056639173,-174.4393648,0.00010999,2]
[323502652,1714056639183,-500.0,0.00010999,2]
[323502653,1714056639192,-500.0,0.00010999,2]
[323502654,1714056639201,-500.0,0.00010999,2]
[323502655,1714056639211,-2844.37,0.00010999,2]
[323502656,1714056639220,-500.0,0.00010999,2]
[323502657,1714056639230,-604.68,0.00010999,2]
[323502658,1714056639240,-175.31783392,0.00010999,2]
[323502659,1714056639249,-500.0,0.00010999,2]
[323502660,1714056639259,-7608.06,0.00010999,2]
[323502661,1714056639269,-500.0,0.00010999,2]
[323502662,1714056639279,-638.46,0.00010999,2]
[323502663,1714056639289,-1664.77,0.00010999,2]
[323502664,1714056639298,-500.0,0.00010999,2]
[323502665,1714056639307,-500.0,0.00010999,2]
[323502666,1714056639317,-500.0,0.00010999,2]
[323502667,1714056639326,-500.0,0.00010999,2]
[323502668,1714056639336,-500.0,0.00010999,2]
[323502669,1714056639345,-4679.16,0.00010999,2]
[323502670,1714056639354,-500.0,0.00010999,2]
[323502671,1714056639364,-500.0,0.00010999,2]
[323502672,1714056639373,-5622.91,0.00010999,2]
[323502673,1714056639382,-500.0,0.00010999,2]
[323502674,1714056639393,-500.0,0.00010999,2]
[323502675,1714056639403,-500.0,0.00010999,2]
[323502676,1714056639413,-644.26,0.00010999,2]
[323502677,1714056639422,-500.0,0.00010999,2]
[323502678,1714056639432,-653.35,0.00010999,2]
[323502680,1714056639441,-1604.79,0.00010999,2]
[323502682,1714056639451,-1535.78,0.00010999,2]
[323502685,1714056639464,-530.90379613,0.00010999,2]
[323502687,1714056639473,-500.0,0.00010999,2]
[323502689,1714056639482,-500.0,0.00010999,2]
[323502692,1714056639492,-2248.92,0.00010999,2]
[323502694,1714056639501,-500.0,0.00010999,2]
[323502696,1714056639511,-500.0,0.00010999,2]
[323502698,1714056639520,-500.0,0.00010999,2]
[323502700,1714056639529,-500.0,0.00010999,2]
[323502702,1714056639538,-5690.02,0.00010999,2]
[323502705,1714056639548,-500.0,0.00010999,2]
[323502708,1714056639557,-730.08,0.00010999,2]
[323502710,1714056639566,-578.95,0.00010999,2]
[323502712,1714056639575,-500.0,0.00010999,2]
[323502714,1714056639585,-3164.65,0.00010999,2]
[323502716,1714056639594,-500.0,0.00010999,2]
[323502718,1714056639603,-500.0,0.00010999,2]
[323502720,1714056639612,-616.94,0.00010999,2]
[323502723,1714056639622,-500.0,0.00010999,2]
[323502725,1714056639632,-13342.95,0.00010999,2]
[323502727,1714056639640,-500.0,0.00010999,2]
[323502729,1714056639650,-500.0,0.00010999,2]
[323502731,1714056639661,-500.0,0.00010999,2]
[323502733,1714056639670,-500.0,0.00010999,2]
[323502735,1714056639679,-500.0,0.00010999,2]
[323502737,1714056639690,-500.0,0.00010999,2]
[323502739,1714056639699,-500.0,0.00010999,2]
[323502741,1714056639709,-500.0,0.00010999,2]
[323502743,1714056639718,-500.0,0.00010999,2]
[323502745,1714056639728,-500.0,0.00010999,2]
[323502747,1714056639737,-500.0,0.00010999,2]
[323502748,1714056639747,-500.0,0.00010999,2]
[323502749,1714056639756,-500.0,0.00010999,2]
[323502752,1714056639765,-500.0,0.00010999,2]
[323502755,1714056639775,-500.0,0.00010999,2]
[323502757,1714056639784,-500.0,0.00010999,2]
[323502759,1714056639793,-16474.2,0.00010999,2]
[323502761,1714056639802,-520.65557546,0.00010999,2]
[323502763,1714056639811,-500.0,0.00010999,2]
[323502765,1714056639821,-782.89,0.00010999,2]
[323502767,1714056639830,-782.9,0.00010999,2]
[323502769,1714056639839,-500.0,0.00010999,2]
[323502771,1714056639848,-2373.53,0.00010999,2]
[323502772,1714056639857,-500.0,0.00010999,2]
[323502774,1714056639866,-500.0,0.00010999,2]
[323502775,1714056639876,-500.0,0.00010999,2]
[323502777,1714056639885,-500.0,0.00010999,2]
[323502779,1714056639894,-500.0,0.00010999,2]
[323502780,1714056639903,-652.62059564,0.00011,2]
[323502782,1714056639916,-668669.0,0.00011,2]
[323502784,1714056639926,-38886.84264262,0.00011,2]
[323502785,1714056639935,-173.26,0.00011037,2]
[323502787,1714056639945,-2500.0,0.000111,4]
[323502789,1714056639955,-3800.0,0.000112,4]
[323502791,1714056639965,-500.0,0.00011273,2]
[323502793,1714056639975,-500.0,0.00011273,2]
[323502795,1714056639984,-500.0,0.00011273,2]
[323502796,1714056639996,-500.0,0.00011273,2]
[323502797,1714056640007,-500.0,0.00011273,2]
[323502798,1714056640016,-500.0,0.00011273,2]
[323502799,1714056640026,-575.21,0.00011273,2]
[323502800,1714056640035,-524.49210064,0.00011273,2]
[323502801,1714056640045,-500.0,0.00011273,2]
[323502802,1714056640054,-500.0,0.00011273,2]
[323502803,1714056640063,-154.5,0.00011273,2]
[323502804,1714056640071,-549.56,0.00011273,2]
[323502805,1714056640082,-586.64,0.00011273,2]
[323502806,1714056640091,-500.0,0.00011273,2]
[323502807,1714056640100,-515.46701234,0.00011273,2]
[323502808,1714056640109,-500.0,0.00011273,2]
[323502809,1714056640119,-500.0,0.00011273,2]
[323502810,1714056640128,-500.0,0.00011273,2]
[323502811,1714056640138,-500.0,0.00011273,2]
[323502812,1714056640147,-426.61,0.00011273,2]
[323502813,1714056640156,-388.54,0.00011273,2]
[323502814,1714056640168,-500.0,0.00011273,2]
[323502815,1714056640177,-500.0,0.00011273,2]
[323502816,1714056640187,-500.0,0.00011273,2]
[323502817,1714056640196,-500.0,0.00011273,2]
[323502818,1714056640205,-500.0,0.00011273,2]
[323502819,1714056640216,-273.79,0.00011273,2]
[323502820,1714056640225,-581.36,0.00011273,2]
[323502821,1714056640235,-629.19,0.00011273,2]
[323502822,1714056640244,-500.0,0.00011273,2]
[323502823,1714056640254,-500.0,0.00011273,2]
[323502824,1714056640264,-500.0,0.00011273,2]
[323502825,1714056640275,-471.06,0.00011273,2]
[323502826,1714056640285,-273.67176064,0.00011273,2]
[323502827,1714056640294,-595.25,0.00011273,2]
[323502828,1714056640303,-500.0,0.00011273,2]
[323502830,1714056640312,-500.0,0.00011273,2]
[323502832,1714056640322,-500.0,0.00011273,2]
[323502834,1714056640331,-500.0,0.00011273,2]
[323502835,1714056640340,-500.0,0.00011273,2]
[323502836,1714056640350,-500.0,0.00011273,2]
[323502837,1714056640363,-500.0,0.00011273,2]
[323502838,1714056640373,-500.0,0.00011273,2]
[323502839,1714056640383,-500.0,0.00011273,2]
[323502840,1714056640393,-762.27,0.00011273,2]
[323502841,1714056640403,-500.0,0.00011273,2]
[323502842,1714056640414,-500.0,0.00011273,2]
[323502843,1714056640424,-500.0,0.00011273,2]
[323502845,1714056640434,-500.0,0.00011273,2]
[323502847,1714056640444,-500.0,0.00011273,2]
[323502848,1714056640454,-500.0,0.00011273,2]
[323502849,1714056640463,-500.0,0.00011273,2]
[323502850,1714056640472,-500.0,0.00011273,2]
[323502851,1714056640481,-718.64,0.00011273,2]
[323502852,1714056640490,-500.0,0.00011273,2]
[323502853,1714056640500,-721.65,0.00011273,2]
[323502854,1714056640511,-500.0,0.00011273,2]
[323502855,1714056640521,-500.0,0.00011273,2]
[323502856,1714056640532,-500.0,0.00011273,2]
[323502857,1714056640542,-500.0,0.00011273,2]
[323502858,1714056640552,-500.0,0.00011273,2]
[323502859,1714056640561,-633.92,0.00011273,2]
[323502860,1714056640571,-500.0,0.00011273,2]
[323502861,1714056640581,-2179.89,0.00011273,2]
[323502862,1714056640592,-514.58,0.00011273,2]
[323502863,1714056640602,-505.84,0.00011273,2]
[323502864,1714056640612,-1276.34,0.00011273,2]
[323502865,1714056640622,-1771.36,0.00011273,2]
[323502866,1714056640633,-500.0,0.00011273,2]
[323502867,1714056640642,-500.0,0.00011273,2]
[323502868,1714056640651,-544.56,0.00011273,2]
[323502869,1714056640662,-500.0,0.00011273,2]
[323502870,1714056640671,-500.0,0.00011273,2]
[323502871,1714056640680,-500.0,0.00011273,2]
[323502872,1714056640690,-500.0,0.00011273,2]
[323502873,1714056640700,-500.0,0.00011273,2]
[323502874,1714056640710,-500.0,0.00011273,2]
[323502875,1714056640719,-500.0,0.00011273,2]
[323502876,1714056640729,-500.0,0.00011273,2]
[323502877,1714056640738,-500.0,0.00011273,2]
[323502878,1714056640747,-500.0,0.00011273,2]
[323502879,1714056640757,-1708.09,0.00011273,2]
[323502880,1714056640766,-768.18,0.00011273,2]
[323502881,1714056640776,-500.0,0.00011273,2]
[323502882,1714056640786,-500.0,0.00011273,2]
[323502883,1714056640796,-500.0,0.00011273,2]
[323502884,1714056640805,-2844.37,0.00011273,2]
[323502885,1714056640816,-500.0,0.00011273,2]
[323502886,1714056640825,-604.68,0.00011273,2]
[323502887,1714056640835,-500.0,0.00011273,2]
[323502888,1714056640845,-7608.06,0.00011273,2]
[323502889,1714056640854,-500.0,0.00011273,2]
[323502890,1714056640863,-638.46,0.00011273,2]
[323502891,1714056640873,-1664.77,0.00011273,2]
[323502892,1714056640882,-500.0,0.00011273,2]
[323502893,1714056640892,-500.0,0.00011273,2]
[323502894,1714056640902,-500.0,0.00011273,2]
[323502895,1714056640913,-500.0,0.00011273,2]
[323502896,1714056640923,-4679.16,0.00011273,2]
[323502897,1714056640932,-500.0,0.00011273,2]
[323502898,1714056640941,-5622.91,0.00011273,2]
[323502899,1714056640951,-500.0,0.00011273,2]
[323502900,1714056640961,-500.0,0.00011273,2]
[323502901,1714056640970,-644.26,0.00011273,2]
[323502902,1714056640980,-500.0,0.00011273,2]
[323502903,1714056640989,-653.35,0.00011273,2]
[323502904,1714056640999,-1604.79,0.00011273,2]
[323502905,1714056641011,-1535.78,0.00011273,2]
[323502906,1714056641020,-500.0,0.00011273,2]
[323502907,1714056641030,-500.0,0.00011273,2]
[323502908,1714056641039,-2248.92,0.00011273,2]
[323502909,1714056641049,-500.0,0.00011273,2]
[323502910,1714056641058,-500.0,0.00011273,2]
[323502911,1714056641068,-500.0,0.00011273,2]
[323502912,1714056641080,-500.0,0.00011273,2]
[323502913,1714056641090,-5690.02,0.00011273,2]
[323502914,1714056641099,-500.0,0.00011273,2]
[323502915,1714056641108,-730.08,0.00011273,2]
[323502916,1714056641119,-578.95,0.00011273,2]
[323502917,1714056641128,-500.0,0.00011273,2]
[323502918,1714056641139,-3164.65,0.00011273,2]
[323502919,1714056641153,-500.0,0.00011273,2]
[323502920,1714056641166,-616.94,0.00011273,2]
[323502921,1714056641176,-500.0,0.00011273,2]
[323502922,1714056641185,-13342.95,0.00011273,2]
[323502923,1714056641194,-500.0,0.00011273,2]
[323502924,1714056641203,-500.0,0.00011273,2]
[323502925,1714056641212,-500.0,0.00011273,2]
[323502926,1714056641221,-500.0,0.00011273,2]
[323502927,1714056641229,-500.0,0.00011273,2]
[323502928,1714056641239,-500.0,0.00011273,2]
[323502929,1714056641249,-500.0,0.00011273,2]
[323502930,1714056641259,-500.0,0.00011273,2]
[323502931,1714056641269,-500.0,0.00011273,2]
[323502932,1714056641279,-500.0,0.00011273,2]
[323502933,1714056641293,-500.0,0.00011273,2]
[323502934,1714056641303,-500.0,0.00011273,2]
[323502935,1714056641313,-500.0,0.00011273,2]
[323502936,1714056641324,-500.0,0.00011273,2]
[323502937,1714056641334,-500.0,0.00011273,2]
[323502938,1714056641343,-16474.2,0.00011273,2]
[323502939,1714056641352,-782.89,0.00011273,2]
[323502940,1714056641361,-782.9,0.00011273,2]
[323502941,1714056641370,-500.0,0.00011273,2]
[323502942,1714056641379,-2373.53,0.00011273,2]
[323502943,1714056641388,-500.0,0.00011273,2]
[323502944,1714056641397,-500.0,0.00011273,2]
[323502945,1714056641406,-5100.0,0.000113,4]
[323502946,1714056641418,-349.4,0.00011315,2]
[323502947,1714056641429,-150.0,0.000114,2]
[323502948,1714056641438,-6400.0,0.000114,4]
[323502949,1714056641447,-1200.0,0.000115,4]
[323502950,1714056641456,-229.11,0.00011547,2]
[323502951,1714056641466,-500.0,0.00011547,2]
[323502952,1714056641475,-500.0,0.00011547,2]
[323502953,1714056641484,-500.0,0.00011547,2]
[323502954,1714056641495,-500.0,0.00011547,2]
[323502955,1714056641504,-500.0,0.00011547,2]
[323502956,1714056641514,-500.0,0.00011547,2]
[323502957,1714056641523,-224.49,0.00011547,2]
[323502958,1714056641533,-549.56,0.00011547,2]
[323502959,1714056641542,-500.0,0.00011547,2]
[323502960,1714056641552,-500.0,0.00011547,2]
[323502961,1714056641561,-500.0,0.00011547,2]
[323502962,1714056641571,-304.31,0.00011547,2]
[323502963,1714056641581,-500.0,0.00011547,2]
[323502964,1714056641591,-500.0,0.00011547,2]
[323502965,1714056641600,-500.0,0.00011547,2]
[323502966,1714056641610,-581.36,0.00011547,2]
[323502967,1714056641619,-500.0,0.00011547,2]
[323502968,1714056641628,-595.25,0.00011547,2]
[323502969,1714056641637,-500.0,0.00011547,2]
[323502970,1714056641647,-500.0,0.00011547,2]
[323502971,1714056641657,-500.0,0.00011547,2]
[323502972,1714056641667,-500.0,0.00011547,2]
[323502973,1714056641677,-500.0,0.00011547,2]
[323502974,1714056641686,-500.0,0.00011547,2]
[323502975,1714056641695,-500.0,0.00011547,2]
[323502976,1714056641705,-762.27,0.00011547,2]
[323502977,1714056641715,-500.0,0.00011547,2]
[323502978,1714056641725,-500.0,0.00011547,2]
[323502979,1714056641735,-500.0,0.00011547,2]
[323502980,1714056641744,-500.0,0.00011547,2]
[323502981,1714056641753,-500.0,0.00011547,2]
[323502982,1714056641763,-542.13,0.00011547,2]
[323502983,1714056641772,-500.0,0.00011547,2]
[323502984,1714056641782,-500.0,0.00011547,2]
[323502985,1714056641793,-718.64,0.00011547,2]
[323502986,1714056641802,-500.0,0.00011547,2]
[323502987,1714056641812,-721.65,0.00011547,2]
[323502988,1714056641822,-500.0,0.00011547,2]
[323502989,1714056641832,-500.0,0.00011547,2]
[323502990,1714056641842,-500.0,0.00011547,2]
[323502991,1714056641852,-500.0,0.00011547,2]
[323502992,1714056641863,-500.0,0.00011547,2]
[323502993,1714056641905,-633.92,0.00011547,2]
[323502994,1714056641917,-500.0,0.00011547,2]
[323502995,1714056641927,-2179.89,0.00011547,2]
[323502996,1714056641936,-514.58,0.00011547,2]
[323502997,1714056641946,-505.84,0.00011547,2]
[323502998,1714056641955,-1276.34,0.00011547,2]
[323502999,1714056641965,-1771.36,0.00011547,2]
[323503000,1714056641974,-500.0,0.00011547,2]
[323503001,1714056641983,-500.0,0.00011547,2]
[323503002,1714056641993,-544.56,0.00011547,2]
[323503003,1714056642004,-500.0,0.00011547,2]
[323503004,1714056642015,-500.0,0.00011547,2]
[323503005,1714056642025,-500.0,0.00011547,2]
[323503006,1714056642035,-500.0,0.00011547,2]
[323503007,1714056642044,-500.0,0.00011547,2]
[323503008,1714056642054,-639.92911629,0.00011547,2]
[323503009,1714056642063,-500.0,0.00011547,2]
[323503010,1714056642073,-500.0,0.00011547,2]
[323503011,1714056642083,-1708.09,0.00011547,2]
[323503012,1714056642094,-768.18,0.00011547,2]
[323503013,1714056642105,-500.0,0.00011547,2]
[323503014,1714056642114,-203.51513972,0.00011547,2]
[323503015,1714056642319,-500.0,0.00011547,2]
[323503016,1714056642328,-2844.37,0.00011547,2]
[323503017,1714056642338,-226.22630354,0.00011547,2]
[323503018,1714056642350,-604.68,0.00011547,2]
[323503019,1714056642360,-500.0,0.00011547,2]
[323503020,1714056642369,-7608.06,0.00011547,2]
[323503021,1714056642378,-500.0,0.00011547,2]
[323503022,1714056642387,-638.46,0.00011547,2]
[323503023,1714056642396,-1664.77,0.00011547,2]
[323503024,1714056642406,-500.0,0.00011547,2]
[323503025,1714056642419,-500.0,0.00011547,2]
[323503026,1714056642428,-500.0,0.00011547,2]
[323503027,1714056642437,-500.0,0.00011547,2]
[323503028,1714056642446,-4679.16,0.00011547,2]
[323503029,1714056642456,-500.0,0.00011547,2]
[323503031,1714056642465,-5622.91,0.00011547,2]
[323503032,1714056642475,-500.0,0.00011547,2]
[323503033,1714056642484,-428.86714111,0.00011547,2]
[323503034,1714056642494,-644.26,0.00011547,2]
[323503035,1714056642503,-653.35,0.00011547,2]
[323503036,1714056642513,-1604.79,0.00011547,2]
[323503037,1714056642522,-1535.78,0.00011547,2]
[323503038,1714056642532,-500.0,0.00011547,2]
[323503039,1714056642541,-500.0,0.00011547,2]
[323503040,1714056642550,-2248.92,0.00011547,2]
[323503041,1714056642560,-500.0,0.00011547,2]
[323503042,1714056642569,-500.0,0.00011547,2]
[323503043,1714056642578,-500.0,0.00011547,2]
[323503044,1714056642588,-500.0,0.00011547,2]
[323503045,1714056642598,-5690.02,0.00011547,2]
[323503046,1714056642607,-500.0,0.00011547,2]
[323503047,1714056642616,-730.08,0.00011547,2]
[323503048,1714056642626,-578.95,0.00011547,2]
[323503051,1714056642635,-3164.65,0.00011547,2]
[323503054,1714056642645,-500.0,0.00011547,2]
[323503057,1714056642654,-500.0,0.00011547,2]
[323503059,1714056642666,-616.94,0.00011547,2]
[323503061,1714056642675,-500.0,0.00011547,2]
[323503064,1714056642685,-13342.95,0.00011547,2]
[323503065,1714056642694,-500.0,0.00011547,2]
[323503067,1714056642703,-500.0,0.00011547,2]
[323503069,1714056642713,-500.0,0.00011547,2]
[323503070,1714056642722,-500.0,0.00011547,2]
[323503071,1714056642731,-500.0,0.00011547,2]
[323503072,1714056642741,-500.0,0.00011547,2]
[323503073,1714056642751,-500.0,0.00011547,2]
[323503074,1714056642765,-500.0,0.00011547,2]
[323503075,1714056642774,-500.0,0.00011547,2]
[323503076,1714056642783,-500.0,0.00011547,2]
[323503077,1714056642792,-500.0,0.00011547,2]
[323503078,1714056642801,-500.0,0.00011547,2]
[323503079,1714056642810,-500.0,0.00011547,2]
[323503080,1714056642819,-500.0,0.00011547,2]
[323503081,1714056642828,-16474.2,0.00011547,2]
[323503082,1714056642837,-782.89,0.00011547,2]
[323503083,1714056642847,-782.9,0.00011547,2]
[323503084,1714056642856,-500.0,0.00011547,2]
[323503085,1714056642865,-2373.53,0.00011547,2]
[323503086,1714056642874,-500.0,0.00011547,2]
[323503087,1714056642883,-500.0,0.00011547,2]
[323503088,1714056642892,-1200.0,0.000116,4]
[323503089,1714056642902,-10770.50761268,0.00011677,2]
[323503090,1714056642913,-14251.6171,0.00011696,2]
[323503091,1714056642921,-12960.3909,0.00011696,2]
[323503092,1714056642931,-608.38738286,0.00011697,2]
[323503093,1714056642940,-1200.0,0.000117,4]
[323503094,1714056642949,-608.38738286,0.00011715,2]
[323503095,1714056642959,-608.38738286,0.00011734,2]
[323503096,1714056642969,-608.38738286,0.00011752,2]
[323503097,1714056642978,-608.38738286,0.00011771,2]
[323503098,1714056642988,-418.94,0.00011781,2]
[323503099,1714056642997,-150.0,0.00011781,2]
[323503100,1714056643010,-150.0,0.00011781,2]
[323503101,1714056643020,-4584.3685979,0.00011784,2]
[323503102,1714056643030,-608.38738286,0.00011789,2]
[323503103,1714056643040,-155.0,0.00011795,2]
[323503104,1714056643049,-3092.04909228,0.00011795,2]
[323503105,1714056643059,-160.78911152,0.00011795,2]
[323503106,1714056643068,-175.76437735,0.00011795,2]
[323503107,1714056643078,-500.0,0.00011795,2]
[323503108,1714056643088,-500.0,0.00011795,2]
[323503109,1714056643098,-500.0,0.00011795,2]
[323503110,1714056643107,-500.0,0.00011795,2]
[323503111,1714056643117,-500.0,0.00011795,2]
[323503112,1714056643126,-500.0,0.00011795,2]
[323503113,1714056643135,-500.0,0.00011795,2]
[323503114,1714056643144,-1064.29,0.00011795,2]
[323503115,1714056643154,-500.0,0.00011795,2]
[323503116,1714056643167,-500.0,0.00011795,2]
[323503117,1714056643176,-1447.70667053,0.00011795,2]
[323503118,1714056643186,-500.0,0.00011795,2]
[323503119,1714056643196,-544.61,0.00011795,2]
[323503120,1714056643215,-500.0,0.00011795,2]
[323503121,1714056643226,-500.0,0.00011795,2]
[323503123,1714056643235,-157.36800317,0.00011795,2]
[323503125,1714056643245,-500.0,0.00011795,2]
[323503127,1714056643254,-500.0,0.00011795,2]
[323503129,1714056643264,-500.0,0.00011795,2]
[323503131,1714056643274,-580.36,0.00011795,2]
[323503132,1714056643284,-500.0,0.00011795,2]
[323503133,1714056643294,-500.0,0.00011795,2]
[323503134,1714056643303,-488.0,0.00011795,2]
[323503135,1714056643313,-500.0,0.00011795,2]
[323503136,1714056643323,-458.58,0.00011795,2]
[323503137,1714056643332,-500.0,0.00011795,2]
[323503138,1714056643341,-500.0,0.00011795,2]
[323503139,1714056643353,-500.0,0.00011795,2]
[323503140,1714056643362,-215.04,0.00011795,2]
[323503141,1714056643371,-500.0,0.00011795,2]
[323503143,1714056643381,-500.0,0.00011795,2]
[323503145,1714056643391,-500.0,0.00011795,2]
[323503147,1714056643401,-500.0,0.00011795,2]
[323503148,1714056643413,-446.9,0.00011795,2]
[323503149,1714056643425,-500.0,0.00011795,2]
[323503150,1714056643435,-500.0,0.00011795,2]
[323503151,1714056643445,-287.23,0.00011795,2]
[323503152,1714056643456,-505.61125787,0.00011795,2]
[323503153,1714056643466,-500.0,0.00011795,2]
[323503154,1714056643475,-500.0,0.00011795,2]
[323503155,1714056643485,-500.0,0.00011795,2]
[323503156,1714056643495,-500.0,0.00011795,2]
[323503157,1714056643505,-500.0,0.00011795,2]
[323503158,1714056643515,-500.0,0.00011795,2]
[323503159,1714056643524,-500.0,0.00011795,2]
[323503160,1714056643534,-500.0,0.00011795,2]
[323503161,1714056643544,-500.0,0.00011795,2]
[323503162,1714056643554,-500.0,0.00011795,2]
[323503163,1714056643563,-500.0,0.00011795,2]
[323503164,1714056643573,-442.44,0.00011795,2]
[323503165,1714056643582,-500.0,0.00011795,2]
[323503166,1714056643591,-150.0,0.00011795,2]
[323503167,1714056643601,-500.0,0.00011795,2]
[323503168,1714056643610,-500.0,0.00011795,2]
[323503169,1714056643621,-500.0,0.00011795,2]
[323503170,1714056643630,-500.0,0.00011795,2]